[Event "Chinese League Division-A 2024"]
[Site "Fuling Chongqing"]
[Date "2024.06.28"]
[Round "3.5"]
[White "Ju, Wenjun"]
[Black "Wang, Yu A."]
[Result "1/2-1/2"]
[ECO "C10"]
[WhiteElo "2558"]
[BlackElo "2234"]
[Annotator "TA"]
[PlyCount "158"]
[EventDate "2024.06.28"]
[EventType "team-tourn"]
[EventCountry "CHN"]
[SourceTitle "playchess.com"]
[Source "ChessBase"]
[SourceQuality "1"]
[TimeControl "40/5400+30:1800+30"]

{[%evp 61,158,0,0,0,0,0,0,0,0,0,0,0,0,0,14,14,14,14,14,14,16,14,14,14,14,0,0,0,0,4,8,8,8,8,33,33,33,33,33,33,33,33,33,33,33,33,33,33,33,33,33,8,33,8,8,8,33,4,4,0,33,33,33,3,3,0,33,33,33,33,33,33,33,0,0,0,0,0,0,0,0,0,0,0,0,0,0,0,0,0,0,0,0,0,0,0,0,0,0]} 1. d4 {[%emt 0:00:02]} e6 {[%emt 0:00:02]} 2. e4 {[%emt 0:04:34]} d5 {[%emt 0:00:02]} 3. Nc3 {[%emt 0:00:04]} dxe4 {[%emt 0:00:16]} 4. Nxe4 {[%emt 0:00:03]} Bd7 {[%emt 0:00:51]} 5. Nf3 {[%emt 0:00:50]} Bc6 {[%emt 0:01:21]} 6. Bd3 {[%emt 0:00:08]} Nd7 {[%emt 0:04:04]} 7. Qe2 {[%emt 0:02:52]} Ngf6 {[%emt 0:04:35]} 8. Nxf6+ {[%emt 0:03:51]} Nxf6 {[%emt 0:09:29] C10: French with 3 Nc3: Unusual Black 3rd moves and 3...dxe4.} 9. O-O {[%emt 0:00:06]} Bxf3 {[%emt 0:08:05]} 10. Qxf3 {[%emt 0:00:04]} Qd5 {[%emt 0:00:03]} 11. Be2 {[%emt 0:11:03]} Qxf3 {[%emt 0:10:43]} 12. Bxf3 {[%emt 0:00:03]} O-O-O {[%emt 0:00:33]} 13. Rd1 {[%emt 0:00:32]} Bd6 $146 {[%emt 0:02:11]} ({Predecessor:} 13... Nd5 14. g3 Be7 15. Rb1 a6 16. Kg2 Nb6 17. c3 c5 18. dxc5 Rxd1 19. Bxd1 Bxc5 {½-½ Sanchez,J (2168)-Akrill,H WLS/SRCCC/21/D3 2021}) 14. c4 {[%emt 0:01:48]} c5 {[%emt 0:07:35]} 15. Be3 {[%emt 0:06:29]} b6 {[%emt 0:00:02]} 16. a3 {[%emt 0:01:39]} e5 {[%emt 0:04:17]} 17. dxc5 {[%emt 0:22:10]} Bxc5 {[%emt 0:00:03]} 18. Bxc5 {[%emt 0:00:03]} bxc5 {[%emt 0:00:02]} 19. b4 {[%emt 0:00:02]} Rxd1+ {[%emt 0:11:21]} 20. Bxd1 {[%emt 0:00:26]} Kc7 {[%emt 0:03:30]} 21. Ba4 {[%emt 0:11:45]} Rb8 {[%emt 0:07:38]} 22. Bb5 {[%emt 0:05:15]} a6 {[%emt 0:05:01]} 23. Bxa6 {[%emt 0:00:03]} cxb4 {[%emt 0:00:02]} 24. axb4 {[%emt 0:00:03]} Rxb4 {[%emt 0:00:04]} 25. Bb5 {[%emt 0:03:50]} Ne4 {[%emt 0:02:58]} 26. f3 {[%emt 0:03:37]} Nd6 {[%emt 0:01:41]} 27. Ra7+ {[%emt 0:00:22]} Kb6 {[%emt 0:01:22]} 28. Rd7 {[%emt 0:06:13]} Rb1+ {[%emt 0:04:50]} 29. Kf2 {[%emt 0:00:06]} Rd1 {[%emt 0:00:18]} 30. Re7 {[%emt 0:05:24]} Rd2+ {[%emt 0:02:37]} 31. Kf1 {[%emt 0:00:04]} Rb2 {[%emt 0:04:16]} 32. Rxe5 {[%emt 0:02:19]} Nxb5 {[%emt 0:00:01]} 33. cxb5 {[%emt 0:00:03]} ({Don't play} 33. Rxb5+ Rxb5 34. cxb5 Kxb5 $15) 33... Rxb5 {[%emt 0:00:01]} 34. Re7 {[%emt 0:00:00]} Rf5 $1 {[%emt 0:00:15]} 35. Kf2 {[%emt 0:01:10]} Kc6 {[%emt 0:00:26]} 36. g4 {[%emt 0:00:35]} Kd6 {[%emt 0:00:41]} 37. Re8 {[%emt 0:02:39]} Ra5 {[%emt 0:03:07]} 38. Rg8 {[%emt 0:00:07]} g6 {[%emt 0:00:38]} 39. Rg7 {[%emt 0:00:03]} Ke6 {[%emt 0:00:56]} 40. Rxh7 {[%emt 0:00:00]} Kf6 {[%emt 0:00:00]} 41. h4 {[%emt 0:03:33]} Ra8 {[%emt 0:06:04]} 42. Kg3 {[%emt 0:01:00]} Rb8 {[%emt 0:03:08]} 43. g5+ {[%emt 0:03:01]} Ke6 {[%emt 0:00:26]} 44. Kg4 {[%emt 0:00:04]} Rb4+ {[%emt 0:06:09]} 45. f4 {[%emt 0:00:14]} Rb1 {[%emt 0:11:16]} 46. h5 {[%emt 0:03:12]} gxh5+ {[%emt 0:03:07]} 47. Rxh5 {[%emt 0:00:03]} Rg1+ {[%emt 0:00:26]} 48. Kf3 {[%emt 0:00:02]} Rf1+ {[%emt 0:00:19]} 49. Kg3 {[%emt 0:02:19]} Rg1+ {[%emt 0:00:46]} 50. Kf2 {[%emt 0:00:04]} Ra1 {[%emt 0:00:06]} 51. Rh6+ {[%emt 0:00:09]} Ke7 {[%emt 0:00:10]} 52. Kf3 {[%emt 0:01:21]} Kf8 {[%emt 0:01:03]} 53. Rd6 {[%emt 0:02:26]} Kg7 {[%emt 0:01:08]} 54. Kg4 {[%emt 0:04:23]} Ra4 {[%emt 0:00:05]} 55. Rd8 {[%emt 0:00:15]} Rb4 {[%emt 0:00:15]} 56. Re8 {[%emt 0:00:04]} Ra4 {[%emt 0:00:20]} 57. Kf5 {[%emt 0:00:49]} Ra5+ {[%emt 0:00:24]} 58. Re5 {[%emt 0:00:06]} Ra4 {[%emt 0:01:11]} 59. Re4 {[%emt 0:00:17]} Ra5+ {[%emt 0:00:12]} 60. Re5 {[%emt 0:00:06]} Ra4 {[%emt 0:00:02]} 61. Rd5 {[%emt 0:00:29]} Ra1 {[%emt 0:01:30]} 62. Ke5 {[%emt 0:01:19]} Re1+ {[%emt 0:00:19]} 63. Kf5 {[%emt 0:00:38]} Ra1 {[%emt 0:00:07]} 64. Rd7 {[%emt 0:00:38]} Ra5+ {[%emt 0:00:30]} 65. Ke4 {[%emt 0:00:33]} Ra4+ {[%emt 0:00:17]} 66. Kf3 {[%emt 0:00:05]} Ra1 {[%emt 0:01:55]} 67. f5 {[%emt 0:00:36]} Rf1+ {[%emt 0:00:26]} 68. Ke4 {[%emt 0:00:26]} Re1+ {[%emt 0:00:14]} 69. Kf4 {[%emt 0:01:23]} Rf1+ {[%emt 0:00:20]} 70. Ke5 {[%emt 0:00:04]} Re1+ $1 {[%emt 0:00:21]} 71. Kd6 {[%emt 0:01:02]} Rf1 {[%emt 0:01:08]} 72. f6+ {[%emt 0:01:43]} (72. Ke5 $5 Re1+ $8 73. Kf4 Rf1+ 74. Kg4 Rg1+ 75. Kf4 Rf1+ $11) 72... Kg6 {[%emt 0:00:00]} 73. Ke7 {[%emt 0:00:03]} Ra1 {[%emt 0:03:20]} 74. Rd8 {[%emt 0:06:55]} Ra7+ {[%emt 0:00:22]} 75. Kf8 {[%emt 0:00:19]} Ra5 {[%emt 0:00:32]} 76. Rd7 {[%emt 0:01:05]} Ra8+ {[%emt 0:00:21]} 77. Ke7 {[%emt 0:00:04]} Ra5 {[%emt 0:00:12]} 78. Kf8 {[%emt 0:01:16]} Ra8+ {[%emt 0:00:05]} 79. Ke7 {[%emt 0:00:03]} Ra5 {[%emt 0:00:03]} 1/2-1/2

[Event "Chinese League Division-A 2024"]
[Site "Fuling Chongqing"]
[Date "2024.06.28"]
[Round "3.6"]
[White "Huang, Renjie"]
[Black "Wan, Yunguo"]
[Result "1-0"]
[ECO "B45"]
[WhiteElo "2480"]
[BlackElo "2498"]
[Annotator "TA"]
[PlyCount "103"]
[EventDate "2024.06.28"]
[EventType "team-tourn"]
[EventCountry "CHN"]
[SourceTitle "playchess.com"]
[Source "ChessBase"]
[SourceQuality "1"]
[TimeControl "40/5400+30:1800+30"]

{[%evp 15,103,17,0,0,18,-14,0,-6,-11,-12,0,-16,-6,-92,-4,-18,-8,0,0,0,0,1,3,0,42,38,45,29,24,38,79,56,111,103,110,110,111,103,96,105,111,91,216,206,218,195,230,223,213,185,208,229,225,220,225,224,231,222,230,141,178,160,192,176,241,175,298,288,292,293,270,226,301,293,711,702,675,672,577,663,712,719,720,720,720,720,712,585,585,500]} 1. e4 {[%emt 0:00:01]} c5 {[%emt 0:00:37]} 2. Nf3 {[%emt 0:00:06]} e6 {[%emt 0:01:12]} 3. d4 {[%emt 0:03:01]} cxd4 {[%emt 0:00:15]} 4. Nxd4 {[%emt 0:00:04]} Nf6 {[%emt 0:00:08]} 5. Nc3 {[%emt 0:00:05]} Nc6 {[%emt 0:00:06]} 6. Be2 {[%emt 0:00:23]} Bb4 {[%emt 0:06:02]} 7. O-O {[%emt 0:00:06]} Bxc3 {[%emt 0:01:40]} 8. bxc3 {[%emt 0:00:04]} Nxe4 {[%emt 0:00:23]} 9. Nxc6 {[%emt 0:00:04]} dxc6 {[%emt 0:00:26]} 10. Bd3 {[%emt 0:00:07]} Nc5 {[%emt 0:02:04]} (10... Nxc3 11. Qg4 O-O 12. Bh6) 11. Qg4 {[%emt 0:00:09] The position is equal.} Qf6 {[%emt 0:01:33][%cal Oc5d3]} 12. Bg5 {[%emt 0:00:54]} Qxc3 {[%emt 0:01:06][%cal Oe6e5] Black wants to play ...e5!} 13. Rad1 {[%emt 0:00:12]} h6 {[%emt 0:01:48]} 14. Qh5 {[%emt 0:22:37] [#]} (14. Be3 $11 {keeps the balance.} O-O 15. Bxh6) 14... g6 {[%emt 0:15:55]} (14... hxg5 $2 15. Qxh8+ Ke7 16. Bh7 $18) (14... b6 $1 $17) 15. Bd2 $11 {[%emt 0:02:22]} gxh5 {[%emt 0:04:39]} 16. Bxc3 {[%emt 0:00:03]} Rg8 {[%emt 0:12:59]} 17. Be2 $40 {[%emt 0:01:59][%mdl 128] Black needs to defend precisely.} b6 {[%emt 0:09:10]} 18. Bxh5 {[%emt 0:02:03]} Ba6 {[%emt 0:04:15]} 19. Rfe1 {[%emt 0:01:02]} Ke7 {[%emt 0:00:35]} 20. Rd4 $1 {[%emt 0:01:47][%mdl 1024] White has compensation.} f6 {[%emt 0:09:42]} 21. Bf3 {[%emt 0:06:37][%cal Oc3b4]} Rad8 {[%emt 0:03:03]} 22. Rh4 {[%emt 0:03:13]} Rg6 {[%emt 0:00:47]} 23. Bb4 {[%emt 0:00:26] This pair of bishops is nice.} (23. Bxc6 Rc8 24. Bd5 Bb7 25. Bxb7 Nxb7 26. Bb4+ Kf7) 23... Bb5 {[%emt 0:08:03] [#]} ({Black should play} 23... Bc8 $14) 24. a4 $1 $16 {[%emt 0:05:34][%mdl 512]} Ba6 {[%emt 0:00:06]} 25. Be4 {[%emt 0:00:26]} Rg7 {[%emt 0:07:26]} 26. Rxh6 {[%emt 0:01:04]} Bc4 {[%emt 0:00:20]} 27. Bxc6 {[%emt 0:01:39]} (27. Bxc5+ bxc5 28. Bxc6 Rd2) 27... Bd5 {[%emt 0:02:42]} 28. Bc3 {[%emt 0:02:15]} Bxc6 {[%emt 0:04:48] A mistake that costs the game.} (28... Rxg2+ $16 {was called for.} 29. Kf1 Rdg8 (29... Bxc6 $2 {loses.} 30. Bxf6+ Kd7 31. Rd1+ Bd5 32. Bxd8 $18) 30. Bxd5 (30. Bxf6+ Kd6 $18) 30... Rg1+ 31. Ke2 Rxe1+ 32. Kxe1 exd5) 29. Bxf6+ $18 {[%emt 0:00:04]} (29. Rxf6 $2 {is the wrong capture.} Rxg2+ 30. Kf1 Rxh2 $19 (30... Nxa4 $2 31. Rexe6+ Kd7 32. Rxc6 $18)) 29... Kf7 {[%emt 0:00:07]} 30. Bxd8 {[%emt 0:00:24][%cal Of2f3] f3! would now be deadly.} Rxg2+ {[%emt 0:00:21]} 31. Kf1 {[%emt 0:00:07]} Rg8 {[%emt 0:00:37]} 32. Bh4 {[%emt 0:02:55]} Bxa4 {[%emt 0:00:25] ...Bb5+ is the strong threat.} 33. Rh7+ {[%emt 0:00:59]} Kg6 {[%emt 0:01:35]} 34. Rxa7 {[%emt 0:00:24]} Bxc2 {[%emt 0:00:07]} 35. Re3 {[%emt 0:01:10] Strongly threatening Rg3+.} Rh8 {[%emt 0:00:45]} 36. Bg3 {[%emt 0:01:03]} Rd8 {[%emt 0:00:28]} 37. Ra1 {[%emt 0:02:02]} Rd7 {[%emt 0:00:35]} 38. h4 {[%emt 0:00:31]} Bf5 {[%emt 0:00:43]} 39. Bf4 {[%emt 0:02:26]} Kh5 {[%emt 0:00:56]} (39... b5 {was worth a try.} 40. Ra5 Bd3+ 41. Kg2 Bc4 42. Rg3+ Kh7) 40. Kg2 {[%emt 0:00:00]} b5 {[%emt 0:00:00]} (40... Rd4 $142) 41. Rg3 {[%emt 0:04:25]} Ne4 {[%emt 0:03:42] Inhibits Rg5+.} 42. Rg8 {[%emt 0:00:07] Black must now prevent f3.} Bh7 {[%emt 0:10:18]} 43. Rb8 {[%emt 0:00:32]} Nc3 {[%emt 0:02:20]} 44. Re1 {[%emt 0:02:09]} Bf5 {[%emt 0:05:41]} (44... Rf7 45. Rh8 Rxf4 46. Rxh7+ Kg6) 45. Rg8 {[%emt 0:02:13] White is clearly winning.} Ne4 {[%emt 0:00:45] Against Rg5+} 46. f3 {[%emt 0:02:35]} Bh7 {[%emt 0:00:09]} 47. Rh8 {[%emt 0:00:39]} e5 {[%emt 0:01:11]} 48. Rxe4 {[%emt 0:01:51]} exf4 {[%emt 0:00:05]} 49. Rxf4 {[%emt 0:00:04]} Kh6 {[%emt 0:01:01]} 50. Rb8 {[%emt 0:00:32]} Bd3 {[%emt 0:00:08]} 51. Rg4 {[%emt 0:00:06]} Rf7 {[%emt 0:00:25]} 52. Rd8 {[%emt 0:00:41] Weighted Error Value: White=0.12 (very precise) /Black=0.23 (precise) .  Mistake:       	White=1     	Black=6      Inaccurate:     	White=2     	Black=3      OK:         	White=16    	Black=18     Best:        	White=8     	Black=1      Strong:       	White=1     	---        Brilliant:      	White=1     	---} 1-0

[Event "Chinese League Division-A 2024"]
[Site "Fuling Chongqing"]
[Date "2024.06.28"]
[Round "3.7"]
[White "Nie, Xinyang"]
[Black "Xiao, Tong"]
[Result "1/2-1/2"]
[ECO "A46"]
[WhiteElo "2395"]
[BlackElo "2518"]
[Annotator "TA"]
[PlyCount "61"]
[EventDate "2024.06.28"]
[EventType "team-tourn"]
[EventCountry "CHN"]
[SourceTitle "playchess.com"]
[Source "ChessBase"]
[SourceQuality "1"]
[TimeControl "40/5400+30:1800+30"]

{[%evp 9,61,6,10,6,6,8,11,10,32,18,17,27,25,25,25,24,31,42,26,0,0,2,18,0,0,0,0,0,0,0,15,0,0,0,0,0,0,0,0,0,2,0,0,0,0,2,2,2,10,0,0,0,0,0]} 1. d4 {[%emt 0:00:21]} Nf6 {[%emt 0:00:05]} 2. Nf3 {[%emt 0:00:30]} e6 {[%emt 0:00:26]} 3. Bf4 {[%emt 0:01:06]} h6 {[%emt 0:00:48]} 4. h3 {[%emt 0:01:57]} d5 {[%emt 0:02:35]} 5. e3 {[%emt 0:00:50]} Bd6 {[%emt 0:00:44]} 6. Bxd6 {[%emt 0:00:11]} Qxd6 {[%emt 0:01:46]} 7. c4 {[%emt 0:00:05]} dxc4 {[%emt 0:04:12]} 8. Bxc4 {[%emt 0:02:40]} a6 {[%emt 0:02:40]} 9. O-O {[%emt 0:02:00]} O-O {[%emt 0:01:04]} 10. Nbd2 {[%emt 0:03:08]} Nbd7 {[%emt 0:07:32]} 11. Be2 {[%emt 0:01:43]} b6 {[%emt 0:05:04]} 12. Nc4 {[%emt 0:00:51]} Qe7 {[%emt 0:00:14]} 13. Nfe5 {[%emt 0:02:26]} Bb7 {[%emt 0:04:13]} 14. Bf3 {[%emt 0:00:18]} Nxe5 {[%emt 0:02:34] The position is equal.} 15. Nxe5 {[%emt 0:01:16]} c5 {[%emt 0:02:32]} 16. Rc1 {[%emt 0:06:36]} Rad8 {[%emt 0:07:09]} 17. Bxb7 {[%emt 0:00:36]} Qxb7 {[%emt 0:00:07]} 18. Qf3 {[%emt 0:00:21]} Qxf3 {[%emt 0:04:38]} 19. Nxf3 {[%emt 0:00:04]} Ne4 {[%emt 0:01:10]} 20. dxc5 {[%emt 0:02:06]} Nxc5 {[%emt 0:00:29]} 21. b4 {[%emt 0:03:34]} Nd3 {[%emt 0:03:26][%csl LRb4,LRc1]} 22. Rc6 {[%emt 0:00:39]} Nxb4 {[%emt 0:04:17]} 23. Rxb6 {[%emt 0:00:04]} Nxa2 {[%emt 0:00:08]} 24. Rxa6 {[%emt 0:00:04]} Nc3 {[%emt 0:00:09]} 25. Rfa1 {[%emt 0:02:48]} Rd5 {[%emt 0:01:18]} 26. Rc6 {[%emt 0:00:19]} Ne4 {[%emt 0:00:45]} 27. Rc4 {[%emt 0:00:06]} Nd2 {[%emt 0:00:14]} 28. Nxd2 {[%emt 0:00:05]} Rxd2 {[%emt 0:00:03]} 29. Rca4 {[%emt 0:00:04]} Rfd8 {[%emt 0:00:06]} 30. Ra8 {[%emt 0:00:05]} Rxa8 {[%emt 0:00:04]} 31. Rxa8+ {[%emt 0:00:55] Weighted Error Value: White=0.04 (flawless) /Black=0.03 (flawless) .  OK:         	White=10    	Black=16} 1/2-1/2

[Event "Chinese League Division-A 2024"]
[Site "Fuling Chongqing"]
[Date "2024.06.28"]
[Round "3.8"]
[White "Liu, Qingnan"]
[Black "Peng, Xiongjian"]
[Result "1-0"]
[ECO "C50"]
[WhiteElo "2540"]
[BlackElo "2521"]
[Annotator "TA"]
[PlyCount "73"]
[EventDate "2024.06.28"]
[EventType "team-tourn"]
[EventCountry "CHN"]
[SourceTitle "playchess.com"]
[Source "ChessBase"]
[SourceQuality "1"]
[TimeControl "40/5400+30:1800+30"]

{[%evp 9,73,22,59,0,56,54,52,58,82,58,62,60,58,53,65,30,76,76,109,95,129,116,108,130,132,128,166,165,154,155,166,154,170,159,156,143,147,130,137,129,179,162,170,101,107,98,101,114,105,137,189,191,221,241,279,260,245,266,262,276,269,258,247,273,1708,1623]} 1. e4 {[%emt 0:00:09]} e5 {[%emt 0:00:05]} 2. Nf3 {[%emt 0:00:04]} Nc6 {[%emt 0:00:03]} 3. Bc4 {[%emt 0:00:07]} d6 {[%emt 0:00:29]} 4. O-O {[%emt 0:03:36]} Be7 {[%emt 0:00:34]} 5. c3 {[%emt 0:01:14]} Bg4 {[%emt 0:01:38]} 6. Qb3 {[%emt 0:05:44]} (6. d3 $14) 6... Na5 {[%emt 0:02:36]} ({Black should try} 6... Bxf3 $11 7. Bxf7+ (7. gxf3 Bg5 $16) 7... Kf8) 7. Bxf7+ $14 {[%emt 0:02:28]} Kf8 {[%emt 0:00:15]} 8. Qa4 {[%emt 0:00:13] White is slightly better.} (8. Qd5 c6 9. Qd3 Kxf7 $15) 8... Nh6 {[%emt 0:13:24]} 9. Qxa5 {[%emt 0:15:44]} (9. Bd5 $6 c6 $11) 9... Nxf7 {[%emt 0:00:20]} 10. d4 {[%emt 0:00:31]} Bxf3 {[%emt 0:06:01]} 11. gxf3 {[%emt 0:00:39]} Qd7 {[%emt 0:04:23]} 12. Kg2 {[%emt 0:00:46]} Bg5 {[%emt 0:03:34]} (12... h6 $11) 13. Be3 $16 {[%emt 0:00:21]} Re8 {[%emt 0:01:53]} 14. Nd2 {[%emt 0:04:42]} Re6 {[%emt 0:01:18]} 15. Rg1 {[%emt 0:01:13]} a6 {[%emt 0:16:34]} 16. Kh1 {[%emt 0:01:58]} h6 {[%emt 0:00:39]} 17. Qb4 {[%emt 0:00:48]} Qb5 {[%emt 0:01:46]} 18. Qxb5 {[%emt 0:02:04]} axb5 {[%emt 0:00:04]} 19. a4 {[%emt 0:00:36]} bxa4 {[%emt 0:00:38]} 20. Rxa4 {[%emt 0:00:09]} Ke7 {[%emt 0:00:04]} 21. Ra7 {[%emt 0:00:58]} Rb8 {[%emt 0:00:11]} 22. Nc4 {[%emt 0:01:54]} Rf6 {[%emt 0:01:24]} 23. Rg3 {[%emt 0:09:13]} g6 {[%emt 0:04:16]} 24. Bxg5 {[%emt 0:04:13]} hxg5 {[%emt 0:04:20]} (24... Nxg5 $16 {keeps fighting.} 25. dxe5 Rxf3) 25. Kg2 {[%emt 0:05:00]} Kd7 {[%emt 0:07:44]} 26. Rh3 {[%emt 0:02:38]} (26. dxe5 $18 dxe5 27. Rh3) 26... exd4 {[%emt 0:02:08]} 27. cxd4 {[%emt 0:00:11][%cal Bc3d4,Bd4d5][%mdl 32] Hoping for Ne3.} g4 {[%emt 0:00:19]} 28. Rh7 $36 {[%emt 0:10:19][%mdl 2048] Keeping Black busy.} (28. fxg4 $6 Ng5 29. Rc3 Nxe4 $14) 28... Rxf3 {[%emt 0:05:59]} 29. Ne3 {[%emt 0:07:23] White is much more active.} Rf8 {[%emt 0:04:55]} (29... Kc6 $16 {was called for.}) 30. Nxg4 $18 {[%emt 0:01:37]} ({Don't play} 30. Rxb7 $6 Kc8 31. Ra7 (31. Nxg4 $2 {loses.} Kxb7 32. Kxf3 Ng5+ 33. Ke3 Nxh7 $19) 31... Kb8 $16) 30... Rb3 {[%emt 0:00:07]} 31. d5 {[%emt 0:05:52] aiming for e5.} Rb4 {[%emt 0:05:28]} 32. h3 {[%emt 0:03:44]} Ke7 {[%emt 0:00:57]} 33. e5 {[%emt 0:02:27][%cal Be4e5,Be5e6][%mdl 32]} Rh8 {[%emt 0:00:25] [#]} 34. Rxh8 {[%emt 0:00:07]} Nxh8 {[%emt 0:00:04]} 35. Ra8 {[%emt 0:00:03]} Nf7 {[%emt 0:00:17]} 36. e6 {[%emt 0:00:04]} Ne5 {[%emt 0:03:38]} (36... Nd8 37. Rc8 Rc4) 37. Nh6 {[%emt 0:00:05] Weighted Error Value: White=0.09 (flawless) /Black=0.19 (very precise) .  Mistake:       	White=1     	Black=5      Inaccurate:     	White=1     	Black=2      OK:         	White=15    	Black=8      Best:        	White=2     	Black=4} 1-0

[Event "Chinese League Division-A 2024"]
[Site "Fuling Chongqing"]
[Date "2024.06.28"]
[Round "3.9"]
[White "Zhang, Lanlin"]
[Black "Zhang, Xiao"]
[Result "1-0"]
[ECO "B12"]
[WhiteElo "2161"]
[BlackElo "2193"]
[Annotator "RC"]
[PlyCount "101"]
[EventDate "2024.06.28"]
[EventType "team-tourn"]
[EventCountry "CHN"]
[SourceTitle "playchess.com"]
[Source "ChessBase"]
[SourceQuality "1"]
[TimeControl "40/5400+30:1800+30"]

1. e4 {[%emt 0:00:03]} c6 {[%emt 0:00:43]} 2. d4 {[%emt 0:00:11]} d5 {[%emt 0:00:05]} 3. e5 {[%emt 0:00:04]} c5 {[%emt 0:00:42]} 4. dxc5 {[%emt 0:00:06]} e6 {[%emt 0:00:57]} 5. Bd3 {[%emt 0:00:06]} Nd7 {[%emt 0:08:23]} 6. Nf3 {[%emt 0:00:28]} Bxc5 {[%emt 0:00:32]} 7. O-O {[%emt 0:00:35]} Ne7 {[%emt 0:00:23]} 8. Re1 {[%emt 0:03:58]} Ng6 {[%emt 0:01:08]} 9. c3 {[%emt 0:04:46]} O-O {[%emt 0:08:02]} 10. b4 {[%emt 0:12:47]} Be7 {[%emt 0:00:18]} 11. Qe2 {[%emt 0:00:30]} a5 {[%emt 0:04:41]} 12. Bd2 {[%emt 0:04:03]} axb4 {[%emt 0:10:02]} 13. Bxg6 {[%emt 0:13:35]} hxg6 {[%emt 0:06:05]} 14. cxb4 {[%emt 0:00:12]} Nb6 {[%emt 0:00:46]} 15. Bc3 {[%emt 0:09:53]} Bd7 {[%emt 0:03:04]} 16. a3 {[%emt 0:07:06]} Qc7 {[%emt 0:12:56]} 17. Bd4 {[%emt 0:01:50]} Na4 {[%emt 0:03:16]} 18. Nbd2 {[%emt 0:01:33]} Rfc8 {[%emt 0:00:15]} 19. h4 {[%emt 0:01:44]} Qd8 {[%emt 0:03:00]} 20. g3 {[%emt 0:00:56]} Nc3 {[%emt 0:03:46]} 21. Qd3 {[%emt 0:00:36]} Nb5 {[%emt 0:02:19]} 22. Bb2 {[%emt 0:00:08]} Ra4 {[%emt 0:00:55]} 23. Nd4 {[%emt 0:04:54]} Qb6 {[%emt 0:01:08]} 24. N2f3 {[%emt 0:00:32]} Rc4 {[%emt 0:02:54]} 25. Kg2 {[%emt 0:04:39]} Nxd4 {[%emt 0:04:56]} 26. Bxd4 {[%emt 0:01:10]} Qb5 {[%emt 0:04:01]} 27. Qe3 {[%emt 0:03:12]} Rc2 {[%emt 0:04:55]} 28. Rec1 {[%emt 0:06:57]} Rxc1 {[%emt 0:00:15]} 29. Rxc1 {[%emt 0:00:02]} Ra8 {[%emt 0:00:17]} 30. Bc5 {[%emt 0:09:44]} Bxc5 {[%emt 0:01:01]} 31. Rxc5 {[%emt 0:00:05]} Qa4 {[%emt 0:00:43]} 32. Rc3 {[%emt 0:00:27]} Rc8 {[%emt 0:00:55]} 33. Nd4 {[%emt 0:00:05]} Rc4 {[%emt 0:02:14]} 34. Rd3 {[%emt 0:07:37]} Qa7 {[%emt 0:00:34]} 35. Qd2 {[%emt 0:02:27]} Qb8 {[%emt 0:00:42]} 36. Qg5 {[%emt 0:00:17]} Qc8 {[%emt 0:01:21]} 37. g4 {[%emt 0:00:01]} Rc3 {[%emt 0:02:56]} 38. Rxc3 {[%emt 0:00:09]} Qxc3 {[%emt 0:00:03]} 39. Qd8+ {[%emt 0:00:04]} Kh7 {[%emt 0:00:28]} 40. Nf3 {[%emt 0:00:00]} Qc8 {[%emt 0:00:00]} 41. Ng5+ {[%emt 0:00:05]} Kh6 {[%emt 0:00:23]} 42. Nxf7+ {[%emt 0:00:04]} Kh7 {[%emt 0:00:05]} 43. Qxc8 {[%emt 0:00:12]} Bxc8 {[%emt 0:00:05]} 44. Nd6 {[%emt 0:00:03]} Bd7 {[%emt 0:00:05]} 45. Nxb7 {[%emt 0:00:04]} d4 {[%emt 0:04:39]} 46. Nc5 {[%emt 0:00:05]} Bc6+ {[%emt 0:00:30]} 47. Kf1 {[%emt 0:00:04]} g5 {[%emt 0:00:11]} 48. hxg5 {[%emt 0:00:07]} Kg6 {[%emt 0:00:05]} 49. f4 {[%emt 0:00:30]} Bf3 {[%emt 0:00:36]} 50. b5 {[%emt 0:00:04]} Bxg4 {[%emt 0:00:52]} 51. Kf2 {[%emt 0:00:04]} 1-0

[Event "Chinese League Division-A 2024"]
[Site "Fuling Chongqing"]
[Date "2024.06.28"]
[Round "3.10"]
[White "Hu, Yu A."]
[Black "Qiu, Mengjie"]
[Result "0-1"]
[ECO "D63"]
[WhiteElo "2127"]
[BlackElo "2176"]
[Annotator "RC"]
[PlyCount "80"]
[EventDate "2024.06.28"]
[EventType "team-tourn"]
[EventCountry "CHN"]
[SourceTitle "playchess.com"]
[Source "ChessBase"]
[SourceQuality "1"]
[TimeControl "40/5400+30:1800+30"]

1. d4 {[%emt 0:00:07]} d5 {[%emt 0:01:46]} 2. c4 {[%emt 0:01:51]} e6 {[%emt 0:00:45]} 3. Nf3 {[%emt 0:00:56]} Nf6 {[%emt 0:00:17]} 4. Nc3 {[%emt 0:00:48]} Be7 {[%emt 0:01:25]} 5. Bg5 {[%emt 0:05:48]} O-O {[%emt 0:01:10]} 6. e3 {[%emt 0:00:11]} Nbd7 {[%emt 0:02:30]} 7. Rc1 {[%emt 0:00:53]} h6 {[%emt 0:00:15]} 8. Bh4 {[%emt 0:01:03]} b6 {[%emt 0:03:18]} 9. cxd5 {[%emt 0:07:53]} exd5 {[%emt 0:00:04]} 10. Ne5 {[%emt 0:11:01]} Bb7 {[%emt 0:05:10]} 11. Bg3 {[%emt 0:04:17]} c5 {[%emt 0:20:29]} 12. Bd3 {[%emt 0:00:41]} Ne4 {[%emt 0:05:05]} 13. Bxe4 {[%emt 0:36:50]} dxe4 {[%emt 0:01:00]} 14. Qa4 {[%emt 0:00:41]} Nxe5 {[%emt 0:04:10]} 15. dxe5 {[%emt 0:05:42]} Qe8 {[%emt 0:08:29]} 16. Qc4 {[%emt 0:05:38]} Qc6 {[%emt 0:01:41]} 17. O-O {[%emt 0:00:08]} a6 {[%emt 0:01:17]} 18. a4 {[%emt 0:00:39]} Rad8 {[%emt 0:04:13]} 19. Rfd1 {[%emt 0:04:35]} Rd3 {[%emt 0:01:53]} 20. Rxd3 {[%emt 0:01:56]} exd3 {[%emt 0:00:05]} 21. e4 {[%emt 0:00:05]} Rd8 {[%emt 0:00:56]} 22. Nd5 {[%emt 0:00:29]} Rxd5 {[%emt 0:04:30]} 23. exd5 {[%emt 0:00:29]} Qxd5 {[%emt 0:00:03]} 24. Qxd5 {[%emt 0:00:42]} Bxd5 {[%emt 0:00:02]} 25. Bf4 {[%emt 0:02:09]} Bb3 {[%emt 0:01:09]} 26. Bd2 {[%emt 0:04:28]} Bxa4 {[%emt 0:04:11]} 27. Ra1 {[%emt 0:00:12]} Bb5 {[%emt 0:03:38]} 28. f4 {[%emt 0:00:53]} a5 {[%emt 0:01:01]} 29. Be3 {[%emt 0:01:52]} f6 {[%emt 0:01:52]} 30. Kf2 {[%emt 0:01:52]} Kf7 {[%emt 0:00:08]} 31. Bd2 {[%emt 0:00:39]} fxe5 {[%emt 0:00:24]} 32. fxe5 {[%emt 0:00:05]} Ke6 {[%emt 0:00:06]} 33. Bc3 {[%emt 0:00:40]} Bg5 {[%emt 0:04:29]} 34. g3 {[%emt 0:00:19]} h5 {[%emt 0:00:04]} 35. h4 {[%emt 0:00:22]} Bh6 {[%emt 0:00:04]} 36. Rg1 {[%emt 0:01:04]} d2 {[%emt 0:05:01]} 37. Kf3 {[%emt 0:00:25]} Ba4 {[%emt 0:00:34]} 38. Ke2 {[%emt 0:00:27]} d1=Q+ {[%emt 0:00:06]} 39. Rxd1 {[%emt 0:00:03]} Bxd1+ {[%emt 0:00:04]} 40. Kxd1 {[%emt 0:00:00]} g6 {[%emt 0:08:29]} 0-1